fUST/lending_fUST_20250328
["ID","MTS","AMOUNT","RATE_DAILY","PERIOD"]
[356750800,1743103840594,-170.82557381,0.0004,120]
[356750801,1743103840604,-817.4542849,0.0004,120]
[356750802,1743103840613,-20141.73906527,0.0004,120]
[356750803,1743103840623,-81723.73347141,0.0004,30]
[356750804,1743103840634,-1027.57978093,0.0004,30]
[356750805,1743103840698,-0.0149447,0.0004,30]
[356750806,1743103841584,-161.313294,0.0004,30]
[356750817,1743103843582,-1649.36721682,0.0004,30]
[356750818,1743103843594,-2712.5024788,0.0004,30]
[356750819,1743103843605,-389.72500403,0.0004,30]
[356750820,1743103843829,-3003.50455338,0.0004,30]
[356750821,1743103843840,-2329.65417368,0.0004,30]
[356750822,1743103843852,-11678.39766723,0.0004,30]
[356750830,1743103846512,-2145.98352522,0.0004,30]
[356750831,1743103846523,-35350.00795443,0.0004,30]
[356750832,1743103846562,-500.0,0.0004,30]
[356750833,1743103847425,-297.18941104,0.0004,30]
[356750844,1743105036216,-400.0,0.00032851,2]
[356750845,1743105036227,-24900.0,0.00032852,2]
[356750846,1743105036237,-161.313294,0.00033289,2]
[356750847,1743105036246,-297.189411,0.00033799,2]
[356750848,1743105036256,-206.26802753,0.000339,11]
[356750849,1743105036266,-313.69235,0.00034127,2]
[356750850,1743105036276,-834.95724862,0.00034454,2]
[356750851,1743105036285,-267.61422648,0.00034458,7]
[356750852,1743105036295,-500.0,0.00034458,7]
[356750853,1743105036306,-500.0,0.00034458,7]
[356750854,1743105036315,-500.0,0.00034458,2]
[356750855,1743105036325,-540.19876016,0.00034458,7]
[356750856,1743105036334,-500.0,0.00034458,2]
[356750857,1743105036344,-500.0,0.00034458,7]
[356750858,1743105036353,-500.0,0.00034458,7]
[356750859,1743105036363,-500.0,0.00034458,2]
[356750860,1743105036372,-500.0,0.00034458,7]
[356750861,1743105036382,-500.0,0.00034458,7]
[356750862,1743105036392,-500.0,0.00034458,2]
[356750863,1743105036401,-229.86458449,0.00034458,2]
[356750876,1743105038454,-270.13541551,0.00034458,2]
[356750877,1743105038463,-462.79012172,0.00034458,7]
[356750878,1743105038473,-345.18241777,0.00034458,7]
[356750879,1743105038485,-154.81758223,0.00034458,7]
[356750880,1743105038494,-396.05997811,0.00034458,2]
[356750881,1743105038517,-103.94002189,0.00034458,2]
[356750882,1743105038526,-500.0,0.00034458,2]
[356750883,1743105038535,-593.88109116,0.00034458,7]
[356750884,1743105038544,-500.0,0.00034458,2]
[356750885,1743105038554,-500.0,0.00034458,2]
[356750886,1743105038563,-500.0,0.00034458,7]
[356750887,1743105038572,-500.0,0.00034458,2]
[356750888,1743105038581,-500.0,0.00034458,2]
[356750889,1743105038590,-500.0,0.00034458,2]
[356750890,1743105038600,-500.0,0.00034458,2]
[356750891,1743105038609,-500.0,0.00034458,2]
[356750892,1743105038618,-500.0,0.00034458,2]
[356750893,1743105038627,-500.0,0.00034458,2]
[356750894,1743105038636,-500.0,0.00034458,2]
[356750895,1743105038645,-500.0,0.00034458,2]
[356750896,1743105038654,-500.0,0.00034458,2]
[356750897,1743105038665,-500.0,0.00034458,2]
[356750898,1743105038675,-500.0,0.00034458,2]
[356750899,1743105038684,-500.0,0.00034458,2]
[356750900,1743105038694,-500.0,0.00034458,2]
[356750901,1743105038704,-500.0,0.00034458,2]
[356750902,1743105038713,-455.84617347,0.00034458,2]
[356750963,1743105040812,-44.15382653,0.00034458,2]
[356750965,1743105040821,-500.0,0.00034458,2]
[356750967,1743105040830,-500.0,0.00034458,2]
[356750969,1743105040839,-500.0,0.00034458,2]
[356750971,1743105040848,-387.94617351,0.00034458,2]
[356751070,1743105043650,-112.05382649,0.00034458,2]
[356751071,1743105043663,-356.86058074,0.00034458,2]
[356751072,1743105043686,-143.13941926,0.00034458,2]
[356751073,1743105043696,-500.0,0.00034458,2]
[356751074,1743105043706,-500.0,0.00034458,2]
[356751075,1743105043715,-500.0,0.00034458,2]
[356751076,1743105043725,-5000.0,0.00034459,2]
[356751077,1743105043735,-500.0,0.00034459,2]
[356751078,1743105043745,-156.587,0.00034538,2]
[356751079,1743105043754,-500.0,0.00034573,5]
[356751080,1743105043764,-500.0,0.00034573,5]
[356751082,1743105043775,-254.08527838,0.00034573,5]
[356751083,1743105043786,-500.0,0.00034573,5]
[356751084,1743105043796,-500.0,0.00034573,5]
[356751085,1743105043806,-150.0,0.00036059,2]
[356751086,1743105043815,-150.0,0.00036059,2]
[356751087,1743105043825,-150.0,0.00036059,2]
[356751088,1743105043834,-150.0,0.00036059,2]
[356751089,1743105043843,-150.0,0.00036059,2]
[356751090,1743105043853,-1000.0,0.00038159,6]
[356751091,1743105043862,-1000.0,0.00038159,6]
[356751092,1743105043871,-1000.0,0.00038159,6]
[356751093,1743105043880,-206.26802753,0.00038233,14]
[356751094,1743105043890,-1000.0,0.00039,120]
[356751095,1743105043900,-172.49819073,0.00039,2]
[356751096,1743105043910,-150.0,0.00039059,2]
[356751097,1743105043919,-150.0,0.00039059,2]
[356751098,1743105043928,-500.0,0.00039122,7]
[356751099,1743105043938,-1570.8878235,0.000398,15]
[356751100,1743105043947,-372.38227502,0.00039973,5]
[356751101,1743105043956,-500.0,0.00039973,5]
[356751102,1743105043967,-500.0,0.00039973,5]
[356751103,1743105043976,-500.0,0.00039973,5]
[356751104,1743105043986,-500.0,0.00039973,5]
[356751105,1743105043996,-240.71,0.0003999,3]
[356751106,1743105044007,-310.65025355,0.00039999,31]
[356751107,1743105044018,-343.76456568,0.00039999,31]
[356751108,1743105044030,-218.0877913,0.00039999,31]
[356751109,1743105044042,-500.0,0.00039999,2]
[356751110,1743105044052,-500.0,0.00039999,2]
[356751111,1743105044062,-361.35964272,0.00039999,2]
[356751112,1743105044071,-100519.57973243,0.0004,30]
[356751113,1743105044096,-400.4892364,0.0004,30]
[356751114,1743105046668,-57134.60597007,0.0004,30]
[356751115,1743105046725,-500.0,0.0004,30]
[356751116,1743105047344,-297.18941104,0.0004,30]
[356751117,1743105055268,-152.67,0.0004,30]
[356751118,1743105070822,-202.81058896,0.0003999,3]
[356751119,1743105078529,-164.97350521,0.00039999,31]
[356751120,1743105079652,-164.97350521,0.00034458,7]
[356751121,1743105153760,335.02649479,0.00034457,2]
[356751122,1743105273765,-489.03549556,0.00034456,7]
[356751123,1743105393454,-300.0,0.00032911,2]
[356751124,1743105441650,-202.39100001,0.00032911,2]
[356751125,1743105476887,-236.54546885,0.000339,7]
[356751126,1743105480823,236.54546885,0.00025,120]
[356751127,1743105483096,-264.2396,0.00032911,2]
[356751128,1743105512531,-181.31170915,0.00032911,2]
[356751134,1743106232318,-196.4098005,0.00032542,2]
[356751135,1743106232328,-120.87306789,0.00032911,2]
[356751136,1743106232339,-572.89011855,0.00032911,2]
[356751137,1743106232348,-1481.30741388,0.00032911,120]
[356751138,1743106232394,-1518.69258612,0.00032911,120]
[356751139,1743106232404,-184.0,0.00034448,2]
[356751140,1743106232414,-500.0,0.00034448,7]
[356751141,1743106232423,-500.0,0.00034448,7]
[356751142,1743106232434,-500.0,0.00034448,2]
[356751143,1743106232443,-500.0,0.00034448,7]
[356751144,1743106232453,-500.0,0.00034448,7]
[356751145,1743106232463,-500.0,0.00034448,7]
[356751146,1743106232472,-3506.70262657,0.0003445,2]
[356751147,1743106232482,-500.0,0.000345,5]
[356751148,1743106232492,-500.0,0.000345,5]
[356751149,1743106232502,-500.0,0.000345,5]
[356751150,1743106232512,-500.0,0.000345,5]
[356751151,1743106232522,-500.0,0.000345,5]
[356751152,1743106232532,-206.26802755,0.000349,12]
[356751153,1743106232542,-150.565823,0.00035285,7]
[356751154,1743106232552,-500.0,0.0003589,2]
[356751155,1743106232561,-151.0,0.00037,17]
[356751156,1743106232570,-150.565823,0.00038289,3]
[356751157,1743106232579,-206.26802754,0.00038567,14]
[356751158,1743106232589,-166.78,0.0003989,3]
[356751159,1743106232600,-500.39,0.0003989,3]
[356751160,1743106232610,-1389.76170592,0.0003989,3]
[356751161,1743106232619,-219.80063982,0.000399,2]
[356751162,1743106232628,-96972.41534547,0.000399,2]
[356751163,1743106232640,-537.21595774,0.000399,2]
[356751169,1743106237576,-500.0,0.00034448,2]
[356751170,1743106237587,-125.89590098,0.00034448,2]
[356751171,1743106237797,-374.10409902,0.00034448,2]
[356751172,1743106237808,-226.64880481,0.00034448,7]
[356751173,1743106237818,-500.0,0.00034448,2]
[356751174,1743106237828,-500.0,0.00034448,2]
[356751175,1743106237837,-500.0,0.00034448,2]
[356751176,1743106237847,-500.0,0.00034448,2]
[356751177,1743106237859,-500.0,0.00034448,2]
[356751178,1743106237868,-500.0,0.00034448,2]
[356751179,1743106237878,-500.0,0.00034448,2]
[356751180,1743106237887,-500.0,0.00034448,2]
[356751181,1743106237897,-500.0,0.00034448,2]
[356751182,1743106237906,-500.0,0.00034448,2]
[356751183,1743106237916,-500.0,0.00034448,2]
[356751184,1743106237925,-20.98754316,0.00034448,2]
[356751191,1743106240847,-479.01245684,0.00034448,2]
[356751192,1743106240857,-500.0,0.00034448,2]
[356751193,1743106240866,-500.0,0.00034448,2]
[356751194,1743106240875,-500.0,0.00034448,2]
[356751195,1743106240885,-500.0,0.00034448,2]
[356751196,1743106240894,-20.95455116,0.00034448,2]
[356751205,1743106242902,-479.04544884,0.00034448,2]
[356751206,1743106242912,-500.0,0.00034448,2]
[356751207,1743106242922,-592.13875889,0.00034448,2]
[356751208,1743106242931,-500.0,0.00034448,2]
[356751209,1743106242941,-500.0,0.00034448,2]
[356751210,1743106242950,-500.0,0.00034448,2]
[356751211,1743106242959,-500.0,0.00034448,2]
[356751212,1743106242968,-500.0,0.00034448,2]
[356751213,1743106242978,-500.0,0.00034448,2]
[356751214,1743106242987,-500.0,0.00034448,2]
[356751215,1743106242997,-500.0,0.00034448,2]
[356751216,1743106243006,-10428.81579227,0.000399,2]
[356751217,1743106243018,-385.88235294,0.000399,2]
[356751218,1743106243032,-35105.37444493,0.000399,2]
[356751226,1743106246039,-2729.62648864,0.000399,2]
[356751227,1743106246052,-463.3,0.000399,2]
[356751228,1743106246089,-5648.76392119,0.000399,2]
[356751231,1743106778219,-183.96653412,0.00034362,2]
[356751232,1743106802003,-300.0,0.00034362,2]
[356751233,1743106833465,-235.64141489,0.00034361,2]
[356751234,1743106834100,-235.64141489,0.000397,15]
[356751235,1743106839819,-196.4098005,0.00034443,7]
[356751236,1743106860169,-212.89607696,0.00034304,2]
[356751237,1743106860191,-38.03869004,0.00034347,2]
[356751242,1743107313147,-434.9013011,0.00032974,2]
[356751243,1743107313173,-65.0986989,0.00034247,2]
[356751244,1743107313638,-500.0,0.00034247,2]
[356751267,1743107432471,-12458.93820146,0.00034219,2]
[356751268,1743107432480,-834.95724862,0.00034235,2]
[356751269,1743107432491,-5000.0,0.00034247,2]
[356751270,1743107432500,-181.40993925,0.00034339,2]
[356751271,1743107432509,-500.0,0.00034438,7]
[356751272,1743107432519,-186.13177907,0.00034438,7]
[356751273,1743107432528,-500.0,0.00034438,7]
[356751274,1743107432537,-500.0,0.00034438,2]
[356751275,1743107432547,-483.8835533,0.00034438,7]
[356751276,1743107432556,-500.0,0.00034438,2]
[356751277,1743107432566,-500.0,0.00034438,7]
[356751278,1743107432575,-500.0,0.00034438,2]
[356751279,1743107432584,-3000.0,0.00034448,120]
[356751280,1743107432593,-537.85167297,0.000345,5]
[356751281,1743107432602,-500.0,0.000345,5]
[356751282,1743107432612,-500.0,0.000345,5]
[356751283,1743107432621,-500.0,0.000345,5]
[356751284,1743107432630,-500.0,0.000345,5]
[356751285,1743107432639,-500.0,0.000345,5]
[356751286,1743107432648,-500.0,0.000345,5]
[356751287,1743107432657,-500.0,0.000345,5]
[356751288,1743107432666,-500.0,0.000345,5]
[356751289,1743107432675,-123.90486912,0.000349,12]
[356751295,1743107437787,-500.0,0.00034438,7]
[356751296,1743107437797,-500.0,0.00034438,2]
[356751297,1743107437807,-500.0,0.00034438,2]
[356751298,1743107437817,-500.0,0.00034438,7]
[356751299,1743107437826,-500.0,0.00034438,2]
[356751300,1743107438036,-500.0,0.00034438,7]
[356751301,1743107438055,-500.0,0.00034438,2]
[356751302,1743107438064,-500.0,0.00034438,2]
[356751303,1743107438074,-500.0,0.00034438,7]
[356751304,1743107438085,-500.0,0.00034438,2]
[356751305,1743107438095,-500.0,0.00034438,7]
[356751306,1743107438104,-412.31398335,0.00034438,2]
[356751313,1743107440176,-87.68601665,0.00034438,2]
[356751314,1743107440186,-500.0,0.00034438,2]
[356751315,1743107440196,-500.0,0.00034438,2]
[356751316,1743107440205,-500.0,0.00034438,2]
[356751317,1743107440215,-500.0,0.00034438,2]
[356751318,1743107440224,-500.0,0.00034438,2]
[356751319,1743107440234,-500.0,0.00034438,2]
[356751320,1743107440244,-500.0,0.00034438,2]
[356751321,1743107440254,-500.0,0.00034438,2]
[356751322,1743107440264,-500.0,0.00034438,2]
[356751323,1743107440274,-500.0,0.00034438,2]
[356751324,1743107440284,-500.0,0.00034438,2]
[356751325,1743107440293,-500.0,0.00034438,2]
[356751326,1743107440303,-500.0,0.00034438,2]
[356751327,1743107440312,-500.0,0.00034438,2]
[356751329,1743107440322,-500.0,0.00034438,2]
[356751331,1743107440333,-500.0,0.00034438,2]
[356751332,1743107440343,-500.0,0.00034438,2]
[356751333,1743107440352,-500.0,0.00034438,2]
[356751334,1743107440362,-500.0,0.00034438,2]
[356751335,1743107440371,-500.0,0.00034438,2]
[356751336,1743107440381,-500.0,0.00034438,2]
[356751337,1743107440391,-500.0,0.00034438,2]
[356751338,1743107440400,-500.0,0.00034438,2]
[356751339,1743107440414,-500.0,0.00034438,2]
[356751340,1743107440424,-79.73587103,0.000349,12]
[356751341,1743107440434,-500.0,0.0003589,2]
[356751342,1743107440444,-181.40993925,0.00036156,2]
[356751343,1743107440454,-203.64074009,0.00036567,13]
[356751344,1743107440464,-181.40993925,0.00037973,2]
[356751345,1743107440474,-185.23,0.0003799,3]
[356751346,1743107440483,-3333.0,0.00038,120]
[356751347,1743107440495,-1000.0,0.00038159,6]
[356751348,1743107440504,-203.64074009,0.00038233,14]
[356751349,1743107440514,-1000.0,0.00038296,6]
[356751350,1743107440524,-165.0329372,0.00038799,4]
[356751351,1743107440533,-1001.26724194,0.0003881,2]
[356751352,1743107440543,-6000.0,0.00039,120]
[356751353,1743107440552,-370.46,0.0003936,3]
[356751354,1743107440562,-157.27109054,0.00039452,30]
[356751355,1743107440572,-152.36409916,0.000395,2]
[356751356,1743107440582,-4051.61295827,0.00039763,3]
[356751357,1743107440591,-564.10257544,0.00039773,5]
[356751358,1743107440601,-637.80866703,0.00039773,5]
[356751359,1743107440610,-509.19423908,0.00039773,5]
[356751360,1743107440620,-500.0,0.00039773,5]
[356751361,1743107440630,-189.63016025,0.00039773,2]
[356751362,1743107440639,-500.0,0.00039773,5]
[356751363,1743107440649,-500.0,0.00039773,5]
[356751364,1743107440658,-500.0,0.00039773,5]
[356751365,1743107440668,-500.0,0.00039773,5]
[356751366,1743107440678,-24309.6777496,0.0003979,3]
[356751367,1743107440688,-181.40993925,0.0003979,2]
[356751368,1743107440698,-30024.2800921,0.000398,2]
[356751376,1743107443061,-3373.58593774,0.000398,2]
[356751377,1743107443111,-7510.60062129,0.000398,2]
[356751378,1743107445987,-555.71,0.0003979,3]
[356751379,1743107445996,-1489.89000001,0.000398,2]
[356751380,1743107446008,-6424.48046282,0.000398,2]
[356751381,1743107446093,-1306.51452931,0.000398,2]
[356751382,1743107452140,-256.73007495,0.00034438,2]
[356751383,1743107464706,-300.0,0.00034437,2]
[356751388,1743107508881,-200.0,0.00034119,2]
[356751389,1743107522644,-285.22649319,0.00034119,2]
[356751390,1743107523442,-285.22649319,0.00034119,2]
[356751398,1743107553017,-186.05633659,0.00034119,2]
[356751399,1743107553578,-186.05633659,0.00034437,7]
[356751400,1743107582118,-161.313294,0.00034119,2]
[356751401,1743107644325,-210.9529972,0.00034119,2]
[356751402,1743107644895,-210.9529972,0.00034119,2]
[356751403,1743107666538,-160.0,0.00034119,2]
[356751404,1743107668302,-196.14899183,0.00034119,2]
[356751417,1743108632274,-160.0,0.00033916,2]
[356751418,1743108632284,-256.7300749,0.00033947,2]
[356751419,1743108632294,-133.2699251,0.0003404,2]
[356751420,1743108632305,-285.20892038,0.0003404,2]
[356751421,1743108632315,-3104.1223968,0.00034119,2]
[356751422,1743108632325,-400.0,0.00034428,2]
[356751423,1743108632335,-3000.0,0.00034448,120]
[356751424,1743108632345,-500.0,0.000345,5]
[356751425,1743108632355,-500.0,0.000345,5]
[356751426,1743108632364,-500.0,0.000345,5]
[356751427,1743108632374,-500.0,0.000345,5]
[356751428,1743108632384,-500.0,0.000345,5]
[356751429,1743108632394,-500.0,0.000345,5]
[356751430,1743108632403,-203.64074009,0.000349,12]
[356751431,1743108632413,-500.0,0.0003589,2]
[356751432,1743108632422,-461.0,0.00036937,2]
[356751433,1743108632432,-500.0,0.000372,30]
[356751434,1743108632441,-500.0,0.000372,30]
[356751435,1743108632451,-500.0,0.000372,30]
[356751436,1743108632461,-500.0,0.000372,30]
[356751437,1743108632470,-500.0,0.000372,30]
[356751438,1743108632479,-578.86442708,0.000372,30]
[356751439,1743108632490,-203.64074009,0.00038233,14]
[356751440,1743108632499,-165.0329373,0.00038799,4]
[356751441,1743108632508,-500.0,0.00039313,5]
[356751442,1743108632518,-1098.70093976,0.00039601,15]
[356751443,1743108632527,-181.31170913,0.00039673,2]
[356751444,1743108632536,-151.0,0.00039676,2]
[356751445,1743108632546,-558.573624,0.00039676,2]
[356751446,1743108632555,-1200.0,0.00039676,2]
[356751447,1743108632564,-18434.8389602,0.0003969,3]
[356751448,1743108632573,-160.0,0.0003969,3]
[356751449,1743108632583,-338.60090428,0.00039699,15]
[356751450,1743108632592,-83749.46932843,0.000397,2]
[356751451,1743108633224,-161.9425379,0.00034428,7]
[356751455,1743108637949,-338.0574621,0.00034428,7]
[356751457,1743108637959,-501.33611882,0.00034428,2]
[356751458,1743108637969,-501.33611882,0.00034428,2]
[356751459,1743108637979,-275.00991084,0.00034428,7]
[356751460,1743108637988,-501.33611882,0.00034428,2]
[356751461,1743108637998,-501.33611882,0.00034428,2]
[356751462,1743108638007,-501.33611882,0.00034428,2]
[356751463,1743108638017,-501.33611882,0.00034428,2]
[356751464,1743108638027,-501.33611882,0.00034428,2]
[356751465,1743108638036,-501.33611882,0.00034428,2]
[356751466,1743108638046,-501.33611882,0.00034428,2]
[356751467,1743108638055,-501.33611882,0.00034428,2]
[356751468,1743108638065,-501.33611882,0.00034428,2]
[356751469,1743108638074,-501.33611882,0.00034428,2]
[356751470,1743108638084,-501.33611882,0.00034428,2]
[356751471,1743108638093,-501.33611882,0.00034428,2]
[356751472,1743108638103,-501.33611882,0.00034428,2]
[356751473,1743108638112,-501.33611882,0.00034428,2]
[356751474,1743108638122,-501.33611882,0.00034428,2]
[356751475,1743108638132,-501.33611882,0.00034428,2]
[356751476,1743108638142,-501.33611882,0.00034428,2]
[356751477,1743108638152,-501.33611882,0.00034428,2]
[356751478,1743108638161,-501.33611882,0.00034428,2]
[356751479,1743108638171,-501.33611882,0.00034428,2]
[356751480,1743108638181,-501.33611882,0.00034428,2]
[356751481,1743108638190,-501.33611882,0.00034428,2]
[356751482,1743108638200,-501.33611882,0.00034428,2]
[356751483,1743108638209,-501.33611882,0.00034428,2]
[356751484,1743108638220,-501.33611882,0.00034428,2]
[356751485,1743108638230,-501.33611882,0.00034428,2]
[356751486,1743108638239,-501.33611882,0.00034428,2]
[356751487,1743108638249,-501.33611882,0.00034428,2]
[356751488,1743108638258,-501.33611882,0.00034428,2]
[356751489,1743108638267,-501.33611882,0.00034428,2]
[356751490,1743108638277,-501.33611882,0.00034428,2]
[356751491,1743108638287,-501.33611882,0.00034428,2]
[356751492,1743108638296,-501.33611882,0.00034428,2]
[356751493,1743108638306,-501.33611882,0.00034428,2]
[356751494,1743108638315,-501.33611882,0.00034428,2]
[356751495,1743108638325,-501.33611882,0.00034428,2]
[356751496,1743108638334,-501.33611882,0.00034428,2]
[356751497,1743108638344,-501.33611882,0.00034428,2]
[356751498,1743108638354,-501.33611882,0.00034428,2]
[356751499,1743108638364,-501.33611882,0.00034428,2]
[356751500,1743108638373,-501.33611882,0.00034428,2]
[356751501,1743108638383,-501.33611882,0.00034428,2]
[356751502,1743108638392,-501.33611882,0.00034428,2]
[356751503,1743108638401,-501.33611882,0.00034428,2]
[356751504,1743108638411,-501.33611882,0.00034428,2]
[356751505,1743108638420,-501.33611882,0.00034428,2]
[356751506,1743108638429,-501.33611882,0.00034428,2]
[356751507,1743108638439,-501.33611882,0.00034428,2]
[356751508,1743108638448,-501.33611882,0.00034428,2]
[356751509,1743108638458,-501.33611882,0.00034428,2]
[356751510,1743108638469,-501.33611882,0.00034428,2]
[356751511,1743108638479,-501.33611882,0.00034428,2]
[356751512,1743108638489,-501.33611882,0.00034428,2]
[356751513,1743108638499,-501.33611882,0.00034428,2]
[356751514,1743108638508,-501.33611882,0.00034428,2]
[356751515,1743108638715,-501.33611882,0.00034428,2]
[356751516,1743108638725,-501.33611882,0.00034428,2]
[356751517,1743108638734,-14088.59029396,0.000397,2]
[356751518,1743108638974,-18280.54511464,0.000397,2]
[356751519,1743108638986,-11607.56374568,0.000397,2]
[356751520,1743108638997,-677.41019514,0.000397,2]
[356751521,1743108639031,-777.84,0.000397,2]
[356751522,1743108639042,-810.16154803,0.000397,2]
[356751523,1743108639054,-539.84621936,0.000397,2]
[356751524,1743108639065,-991.16467886,0.000397,2]
[356751525,1743108639076,-20157.44980035,0.000397,2]
[356751528,1743108640242,-426.72429468,0.000397,2]
[356751529,1743108640254,-3550.62696982,0.000397,2]
[356751530,1743108640299,-791.3323053,0.000397,2]
[356751531,1743108640311,-4741.464556,0.000397,2]
[356751532,1743108640457,-423.16002039,0.000397,2]
[356751566,1743108643946,-229.74887576,0.000397,2]
[356751567,1743108644572,-152.24412278,0.000397,2]
[356751568,1743108662789,-297.18941104,0.00039773,120]
[356751569,1743108670029,-152.67,0.00034428,7]
[356751570,1743108673801,-163.19783752,0.00039699,15]
[356751571,1743108677512,-202.81058896,0.00039673,5]
[356751572,1743108726719,-164.97350521,0.00013699,2]
[356751573,1743108746382,-244.87850032,0.0003307,30]
[356751574,1743108750601,-11.88574179,0.00013699,2]
[356751575,1743108750625,-153.08776342,0.00034427,2]
[356751576,1743108752483,-146.91223658,0.00034427,2]
[356751577,1743108752509,-6.17552684,0.00034428,2]
[356751578,1743108755561,-151.0,0.0003571,30]
[356751580,1743109832307,-300.0,0.00024998,2]
[356751581,1743109832318,-500.0,0.00024999,2]
[356751582,1743109832327,-164.97350521,0.00024999,2]
[356751583,1743109832337,-267.61422648,0.00024999,2]
[356751584,1743109832346,-500.0,0.00024999,2]
[356751585,1743109832355,-500.0,0.00024999,2]
[356751586,1743109832364,-500.0,0.00024999,2]
[356751587,1743109832373,-500.0,0.00024999,2]
[356751588,1743109832382,-500.0,0.00024999,2]
[356751589,1743109832391,-500.0,0.00024999,2]
[356751590,1743109832402,-500.0,0.00024999,2]
[356751591,1743109832411,-500.0,0.00024999,2]
[356751592,1743109832421,-500.0,0.00024999,2]
[356751593,1743109832431,-500.0,0.00024999,2]
[356751594,1743109832440,-500.0,0.00024999,2]
[356751595,1743109832449,-500.0,0.00024999,2]
[356751596,1743109832458,-500.0,0.00024999,2]
[356751597,1743109832468,-500.0,0.00024999,2]
[356751598,1743109832478,-500.0,0.00024999,2]
[356751599,1743109832487,-500.0,0.00024999,2]
[356751600,1743109832497,-500.0,0.00024999,2]
[356751601,1743109832507,-500.0,0.00024999,2]
[356751602,1743109832517,-584.30953934,0.00024999,2]
[356751603,1743109832527,-500.0,0.00024999,2]
[356751604,1743109832536,-500.0,0.00024999,2]
[356751605,1743109832545,-500.0,0.00024999,2]
[356751606,1743109832554,-500.0,0.00024999,2]
[356751607,1743109832563,-500.0,0.00024999,2]
[356751608,1743109832573,-500.0,0.00024999,2]
[356751609,1743109832583,-500.0,0.00024999,2]
[356751610,1743109832592,-500.0,0.00024999,2]
[356751611,1743109832602,-500.0,0.00024999,2]
[356751612,1743109832612,-500.0,0.00024999,2]
[356751613,1743109832621,-500.0,0.00024999,2]
[356751614,1743109832631,-500.0,0.00024999,2]
[356751615,1743109832640,-500.0,0.00024999,2]
[356751616,1743109832650,-500.0,0.00024999,2]
[356751617,1743109832660,-514.99324552,0.00024999,2]
[356751618,1743109832670,-500.0,0.00024999,2]
[356751619,1743109832679,-500.0,0.00024999,2]
[356751620,1743109832689,-500.0,0.00024999,2]
[356751621,1743109832698,-500.0,0.00024999,2]
[356751622,1743109832707,-500.00000001,0.00024999,2]
[356751623,1743109832717,-66353.0,0.00025,2]
[356751624,1743109832726,-152.0,0.00025409,2]
[356751625,1743109832736,-181.31170913,0.00025456,2]
[356751626,1743109832746,-549.24108332,0.000259,6]
[356751627,1743109832755,-192.0,0.00025981,2]
[356751628,1743109832765,-549.24108317,0.00026486,6]
[356751629,1743109832775,-549.24108317,0.00027072,7]
[356751630,1743109832784,-420.0,0.00027081,2]
[356751631,1743109832794,-549.24108317,0.00027659,7]
[356751632,1743109832803,-549.24108317,0.00028245,7]
[356751633,1743109832813,-384.59519026,0.0002838,2]
[356751634,1743109832822,-549.24108317,0.00028831,8]
[356751635,1743109832832,-549.24108317,0.00029417,8]
[356751636,1743109832841,-549.24108317,0.00030003,9]
[356751637,1743109832850,-549.24108317,0.0003059,9]
[356751638,1743109832860,-549.24108317,0.00031176,9]
[356751639,1743109832869,-549.24108317,0.00031762,10]
[356751640,1743109832878,-549.24108317,0.00032348,10]
[356751641,1743109832887,-549.24108317,0.00032934,10]
[356751642,1743109832897,-549.24108317,0.00033521,11]
[356751643,1743109832906,-549.24108317,0.00034107,11]